[Event "Early-Titled-Tuesday-Blitz-May-14-2024"]
[Site "Chess.com"]
[Date "2024.05.14"]
[Round "7"]
[White "Blitz_Lover1"]
[Black "KorolDimitriy75"]
[Result "1-0"]
[WhiteElo "2322"]
[BlackElo "2405"]
[TimeControl "180+1"]
[EndTime "9:21:01 PDT"]
[Termination "Blitz_Lover1 won on time"]

1. e4 {[%clk 0:03:00.9]} 1... c5 {[%clk 0:02:50.3]} 2. Nf3 {[%clk 0:03:00.6]}
2... d6 {[%clk 0:02:49.9]} 3. d4 {[%clk 0:03:00.3]} 3... cxd4 {[%clk 0:02:50.8]}
4. Nxd4 {[%clk 0:03:00.5]} 4... Nf6 {[%clk 0:02:51.2]} 5. Nc3 {[%clk 0:03:00.1]}
5... g6 {[%clk 0:02:52.1]} 6. Be3 {[%clk 0:02:59.2]} 6... Bg7 {[%clk 0:02:52.4]}
7. f3 {[%clk 0:02:59.5]} 7... O-O {[%clk 0:02:52.9]} 8. Qd2 {[%clk 0:03:00]}
8... Nc6 {[%clk 0:02:53.6]} 9. O-O-O {[%clk 0:03:00.1]} 9... d5 {[%clk 0:02:54]}
10. exd5 {[%clk 0:03:00.4]} 10... Nxd5 {[%clk 0:02:54.8]} 11. Nxc6 {[%clk
0:03:00.9]} 11... bxc6 {[%clk 0:02:55.7]} 12. Bd4 {[%clk 0:03:01.2]} 12... e5
{[%clk 0:02:56]} 13. Bc5 {[%clk 0:03:01.9]} 13... Be6 {[%clk 0:02:56.2]} 14. Ne4
{[%clk 0:03:01.1]} 14... Rb8 {[%clk 0:02:56.2]} 15. Bc4 {[%clk 0:02:54.5]} 15...
Qc7 {[%clk 0:02:55.8]} 16. Bxf8 {[%clk 0:02:50.7]} 16... Bxf8 {[%clk 0:02:56.7]}
17. h4 {[%clk 0:02:47.4]} 17... Qb6 {[%clk 0:02:54.7]} 18. Bb3 {[%clk
0:02:44.3]} 18... a5 {[%clk 0:02:54.6]} 19. c3 {[%clk 0:02:22.1]} 19... h6
{[%clk 0:01:00.1]} 20. h5 {[%clk 0:02:14.2]} 20... g5 {[%clk 0:00:59.5]} 21. g4
{[%clk 0:01:54.3]} 21... Kh8 {[%clk 0:00:46]} 22. Kb1 {[%clk 0:01:35.1]} 22...
Ne3 {[%clk 0:00:37.2]} 23. Bxe6 {[%clk 0:01:20]} 23... Nxd1 {[%clk 0:00:35.7]}
24. Rxd1 {[%clk 0:01:11.2]} 24... fxe6 {[%clk 0:00:35.3]} 25. Ka1 {[%clk
0:01:06.7]} 25... a4 {[%clk 0:00:31.8]} 26. Rb1 {[%clk 0:00:54.8]} 26... Qb5
{[%clk 0:00:29.7]} 27. Qd7 {[%clk 0:00:45.3]} 27... Ba3 {[%clk 0:00:24.3]} 28.
Qd2 {[%clk 0:00:27.1]} 28... Bf8 {[%clk 0:00:23.9]} 29. Qc2 {[%clk 0:00:23.9]}
29... Be7 {[%clk 0:00:16.4]} 30. c4 {[%clk 0:00:22.4]} 30... Qb4 {[%clk
0:00:15.4]} 31. a3 {[%clk 0:00:20.1]} 31... Qb3 {[%clk 0:00:14.5]} 32. Qc3
{[%clk 0:00:16.7]} 32... Kg8 {[%clk 0:00:09.9]} 33. Qxe5 {[%clk 0:00:14.8]}
33... Bxa3 {[%clk 0:00:08.5]} 34. Qxe6+ {[%clk 0:00:13.7]} 34... Kh8 {[%clk
0:00:08.6]} 35. Qxh6+ {[%clk 0:00:10.7]} 35... Kg8 {[%clk 0:00:08.3]} 36. Qe6+
{[%clk 0:00:09.3]} 36... Kf8 {[%clk 0:00:07.4]} 37. Qf6+ {[%clk 0:00:08.4]}
37... Kg8 {[%clk 0:00:07.6]} 38. Qxg5+ {[%clk 0:00:06.8]} 38... Kf8 {[%clk
0:00:07.3]} 39. Qf6+ {[%clk 0:00:07.3]} 39... Kg8 {[%clk 0:00:07.4]} 40. Qe6+
{[%clk 0:00:07.2]} 40... Kh8 {[%clk 0:00:07.2]} 41. Qh6+ {[%clk 0:00:07]} 41...
Kg8 {[%clk 0:00:07.4]} 42. Qg6+ {[%clk 0:00:07.5]} 42... Kf8 {[%clk 0:00:07.1]}
43. Qf6+ {[%clk 0:00:06.7]} 43... Kg8 {[%clk 0:00:07.4]} 44. Ng5 {[%clk
0:00:05.5]} 44... Bxb2+ {[%clk 0:00:04.8]} 45. Qxb2 {[%clk 0:00:05.5]} 45... Rb7
{[%clk 0:00:00.6]} 46. Qxb3 {[%clk 0:00:05]} 46... axb3 {[%clk 0:00:01.5]} 47.
Kb2 {[%clk 0:00:03.3]} 47... Kg7 {[%clk 0:00:02]} 48. Ne4 {[%clk 0:00:02.8]}
48... Kf7 {[%clk 0:00:01.6]} 49. Kc3 {[%clk 0:00:02.7]} 49... Ke6 {[%clk
0:00:00.9]} 50. Rxb3 {[%clk 0:00:02.8]} 50... Ra7 {[%clk 0:00:00.6]} 51. Nc5+
{[%clk 0:00:01.8]} 51... Ke5 {[%clk 0:00:01.5]} 52. Ne4 {[%clk 0:00:01.4]} 52...
Ra1 {[%clk 0:00:01.5]} 53. Kb4 {[%clk 0:00:01.8]} 53... Rc1 {[%clk 0:00:01.3]}
54. Kc5 {[%clk 0:00:02.7]} 54... Kf4 {[%clk 0:00:00.7]} 55. Rb7 {[%clk
0:00:03.4]} 55... Kxf3 {[%clk 0:00:00.4]} 56. Nf6 {[%clk 0:00:03.2]} 56... Kf4
{[%clk 0:00:00.2]} 57. h6 {[%clk 0:00:03.6]} 57... Kg5 {[%clk 0:00:00.1]} 58. h7
{[%clk 0:00:03.3]} 58... Rh1 {[%clk 0:00:00.4]} 59. Rb8 {[%clk 0:00:01.2]} 59...
Kxf6 {[%clk 0:00:00.3]} 60. h8=Q+ {[%clk 0:00:01.8]} 1-0

[Event "Early-Titled-Tuesday-Blitz-May-14-2024"]
[Site "Chess.com"]
[Date "2024.05.14"]
[Round "7"]
[White "Pedrada88"]
[Black "chess_sharparchitect"]
[Result "1-0"]
[WhiteElo "2563"]
[BlackElo "2324"]
[TimeControl "180+1"]
[EndTime "9:21:03 PDT"]
[Termination "Pedrada88 won on time"]

1. Nf3 {[%clk 0:03:00.9]} 1... d5 {[%clk 0:02:58.6]} 2. g3 {[%clk 0:03:01.3]}
2... Nf6 {[%clk 0:02:58.1]} 3. Bg2 {[%clk 0:03:01.8]} 3... c5 {[%clk 0:02:57.9]}
4. O-O {[%clk 0:03:02.2]} 4... Nc6 {[%clk 0:02:57.2]} 5. d4 {[%clk 0:03:02.3]}
5... cxd4 {[%clk 0:02:43.3]} 6. Nxd4 {[%clk 0:03:03.2]} 6... e6 {[%clk
0:02:43.8]} 7. b3 {[%clk 0:03:03]} 7... Be7 {[%clk 0:02:40.4]} 8. Bb2 {[%clk
0:03:03.4]} 8... O-O {[%clk 0:02:40.3]} 9. Nd2 {[%clk 0:03:02.5]} 9... Re8
{[%clk 0:02:33.5]} 10. c4 {[%clk 0:03:01.5]} 10... Bc5 {[%clk 0:02:11]} 11. Nxc6
{[%clk 0:02:55]} 11... bxc6 {[%clk 0:02:11]} 12. Rc1 {[%clk 0:02:55.7]} 12...
Be7 {[%clk 0:01:53.7]} 13. e4 {[%clk 0:02:54]} 13... Ba6 {[%clk 0:01:36.4]} 14.
Re1 {[%clk 0:02:45.4]} 14... Bb4 {[%clk 0:01:24.4]} 15. exd5 {[%clk 0:02:35.8]}
15... cxd5 {[%clk 0:01:13.1]} 16. a3 {[%clk 0:02:20.8]} 16... Bxd2 {[%clk
0:01:01.4]} 17. Qxd2 {[%clk 0:02:21.7]} 17... dxc4 {[%clk 0:00:54.1]} 18. Qxd8
{[%clk 0:01:52]} 18... Raxd8 {[%clk 0:00:53]} 19. bxc4 {[%clk 0:01:52.9]} 19...
Rd2 {[%clk 0:00:39.3]} 20. Bc3 {[%clk 0:01:52.8]} 20... Ra2 {[%clk 0:00:36.4]}
21. c5 {[%clk 0:01:19.4]} 21... Rxa3 {[%clk 0:00:23.3]} 22. Bxf6 {[%clk
0:01:19.6]} 22... gxf6 {[%clk 0:00:22.9]} 23. Ra1 {[%clk 0:01:20.5]} 23... Rxa1
{[%clk 0:00:16.9]} 24. Rxa1 {[%clk 0:01:21.4]} 24... Bb5 {[%clk 0:00:14.7]} 25.
Rxa7 {[%clk 0:01:20.8]} 25... Rc8 {[%clk 0:00:15]} 26. Ra8 {[%clk 0:01:00]}
26... Bd7 {[%clk 0:00:08.3]} 27. f4 {[%clk 0:00:54.6]} 27... Kf8 {[%clk
0:00:08.1]} 28. Ra5 {[%clk 0:00:42.3]} 28... Ke7 {[%clk 0:00:07.4]} 29. Kf2
{[%clk 0:00:39.5]} 29... Bc6 {[%clk 0:00:07.3]} 30. Ra7+ {[%clk 0:00:38.3]}
30... Kf8 {[%clk 0:00:07.1]} 31. Bf1 {[%clk 0:00:37.1]} 31... h6 {[%clk
0:00:07]} 32. Ke3 {[%clk 0:00:34.1]} 32... Kg7 {[%clk 0:00:06.3]} 33. Be2 {[%clk
0:00:30.8]} 33... Bd5 {[%clk 0:00:06.6]} 34. Kd4 {[%clk 0:00:29.6]} 34... Kg6
{[%clk 0:00:06.7]} 35. Bd3+ {[%clk 0:00:25.7]} 35... f5 {[%clk 0:00:07]} 36. Ra5
{[%clk 0:00:12.6]} 36... Kf6 {[%clk 0:00:07.2]} 37. Bb5 {[%clk 0:00:11.8]} 37...
Rc7 {[%clk 0:00:06.6]} 38. Ra6 {[%clk 0:00:06.1]} 38... Rc8 {[%clk 0:00:06.4]}
39. c6 {[%clk 0:00:05.6]} 39... Rc7 {[%clk 0:00:06.2]} 40. Kc5 {[%clk
0:00:05.9]} 40... Rc8 {[%clk 0:00:05.7]} 41. Kd6 {[%clk 0:00:05.6]} 41... Bxc6
{[%clk 0:00:03.6]} 42. Bxc6 {[%clk 0:00:05.6]} 42... Rd8+ {[%clk 0:00:03.7]} 43.
Bd7 {[%clk 0:00:05.8]} 43... Rf8 {[%clk 0:00:01.7]} 44. Ra7 {[%clk 0:00:05.9]}
44... h5 {[%clk 0:00:01.9]} 45. Bb5 {[%clk 0:00:05.8]} 45... Rh8 {[%clk
0:00:02.2]} 46. h4 {[%clk 0:00:05.1]} 46... Rg8 {[%clk 0:00:02.1]} 47. Ra3
{[%clk 0:00:04.8]} 47... Rd8+ {[%clk 0:00:02.3]} 48. Bd7 {[%clk 0:00:05.1]}
48... Rb8 {[%clk 0:00:02.3]} 49. Rc3 {[%clk 0:00:05.3]} 49... Rb6+ {[%clk
0:00:02.6]} 50. Bc6 {[%clk 0:00:05.7]} 50... Rb8 {[%clk 0:00:02.7]} 51. Kc7
{[%clk 0:00:05.9]} 51... Rb4 {[%clk 0:00:02.7]} 52. Bf3 {[%clk 0:00:05.8]} 52...
Rd4 {[%clk 0:00:01.6]} 53. Bxh5 {[%clk 0:00:05.6]} 53... Rd2 {[%clk 0:00:02.2]}
54. Bf3 {[%clk 0:00:05.7]} 54... e5 {[%clk 0:00:02.5]} 55. Rc6+ {[%clk
0:00:05.2]} 55... Kg7 {[%clk 0:00:02.4]} 56. fxe5 {[%clk 0:00:05.7]} 56... Rd3
{[%clk 0:00:02.9]} 57. Bh5 {[%clk 0:00:05.1]} 57... Rxg3 {[%clk 0:00:03]} 58.
Rf6 {[%clk 0:00:05.6]} 58... f4 {[%clk 0:00:02.5]} 59. Rxf4 {[%clk 0:00:04.7]}
59... Rh3 {[%clk 0:00:01.3]} 60. Bxf7 {[%clk 0:00:04.6]} 60... Rc3+ {[%clk
0:00:00.1]} 61. Kd6 {[%clk 0:00:04.8]} 61... Rd3+ {[%clk 0:00:00.2]} 62. Bd5
{[%clk 0:00:05.1]} 62... Re3 {[%clk 0:00:00.1]} 63. e6 {[%clk 0:00:05.6]} 63...
Kg6 {[%clk 0:00:00.4]} 64. e7 {[%clk 0:00:05.8]} 64... Kg7 {[%clk 0:00:00.3]}
65. Rf8 {[%clk 0:00:06]} 65... Kg6 {[%clk 0:00:00.3]} 66. e8=Q+ {[%clk 0:00:06]}
1-0

[Event "Early-Titled-Tuesday-Blitz-May-14-2024"]
[Site "Chess.com"]
[Date "2024.05.14"]
[Round "7"]
[White "tandaleo"]
[Black "AradNazari"]
[Result "1-0"]
[WhiteElo "2600"]
[BlackElo "2796"]
[TimeControl "180+1"]
[EndTime "9:21:05 PDT"]
[Termination "tandaleo won by checkmate"]

1. d4 {[%clk 0:03:00.9]} 1... Nf6 {[%clk 0:02:54.5]} 2. Nf3 {[%clk 0:02:58.7]}
2... g6 {[%clk 0:02:53.6]} 3. Nbd2 {[%clk 0:02:58.9]} 3... c5 {[%clk 0:02:50.6]}
4. dxc5 {[%clk 0:02:58.4]} 4... Qa5 {[%clk 0:02:51]} 5. a3 {[%clk 0:02:49.6]}
5... Qxc5 {[%clk 0:02:51.2]} 6. b4 {[%clk 0:02:49.7]} 6... Qc7 {[%clk
0:02:50.8]} 7. Bb2 {[%clk 0:02:49.5]} 7... Bg7 {[%clk 0:02:51]} 8. e3 {[%clk
0:02:48.6]} 8... O-O {[%clk 0:02:51.4]} 9. Be2 {[%clk 0:02:45.5]} 9... a5 {[%clk
0:02:40.2]} 10. c4 {[%clk 0:02:44]} 10... b6 {[%clk 0:02:37.7]} 11. O-O {[%clk
0:02:42.3]} 11... Bb7 {[%clk 0:02:34]} 12. Qb3 {[%clk 0:02:37]} 12... Na6 {[%clk
0:02:26.7]} 13. Nd4 {[%clk 0:02:34.9]} 13... Qe5 {[%clk 0:02:10.7]} 14. N2f3
{[%clk 0:02:17]} 14... Qe4 {[%clk 0:02:05]} 15. h3 {[%clk 0:02:09.7]} 15... Bc8
{[%clk 0:01:28.9]} 16. Nd2 {[%clk 0:02:00.1]} 16... Qh4 {[%clk 0:01:24.3]} 17.
Bf3 {[%clk 0:01:59]} 17... Rb8 {[%clk 0:01:21.2]} 18. Rfd1 {[%clk 0:01:16.9]}
18... e5 {[%clk 0:00:53.7]} 19. Nb5 {[%clk 0:01:09.2]} 19... Ne8 {[%clk
0:00:42.8]} 20. Ne4 {[%clk 0:01:02.6]} 20... Qe7 {[%clk 0:00:32]} 21. Ned6
{[%clk 0:00:57.2]} 21... Nxd6 {[%clk 0:00:24.7]} 22. Nxd6 {[%clk 0:00:58.1]}
22... Rd8 {[%clk 0:00:15.1]} 23. Rd2 {[%clk 0:00:49.9]} 23... axb4 {[%clk
0:00:11.8]} 24. axb4 {[%clk 0:00:50]} 24... Nc7 {[%clk 0:00:12.5]} 25. Ra7
{[%clk 0:00:26.5]} 25... Ne8 {[%clk 0:00:12.5]} 26. Nxc8 {[%clk 0:00:21.3]}
26... Rbxc8 {[%clk 0:00:13.4]} 27. Qa4 {[%clk 0:00:15.9]} 27... e4 {[%clk
0:00:13.2]} 28. Be2 {[%clk 0:00:13.4]} 28... Bxb2 {[%clk 0:00:12.7]} 29. Rxb2
{[%clk 0:00:13.8]} 29... Qd6 {[%clk 0:00:09.6]} 30. Qa2 {[%clk 0:00:05.8]} 30...
Nc7 {[%clk 0:00:09.8]} 31. b5 {[%clk 0:00:05.3]} 31... Ne6 {[%clk 0:00:09.9]}
32. Rd2 {[%clk 0:00:05.7]} 32... Qe7 {[%clk 0:00:09.1]} 33. Qc2 {[%clk
0:00:04.1]} 33... Nc5 {[%clk 0:00:09.2]} 34. Rd5 {[%clk 0:00:04.5]} 34... Ra8
{[%clk 0:00:09.2]} 35. Qa2 {[%clk 0:00:04.4]} 35... Qf8 {[%clk 0:00:05.9]} 36.
Bd1 {[%clk 0:00:02.6]} 36... Kg7 {[%clk 0:00:05.4]} 37. Bc2 {[%clk 0:00:02.7]}
37... Rxa7 {[%clk 0:00:05.7]} 38. Qxa7 {[%clk 0:00:02.8]} 38... Ra8 {[%clk
0:00:06.3]} 39. Qxb6 {[%clk 0:00:03.4]} 39... Ne6 {[%clk 0:00:04.3]} 40. Qd6
{[%clk 0:00:03.1]} 40... Ra1+ {[%clk 0:00:04.8]} 41. Kh2 {[%clk 0:00:03.4]}
41... Qxd6+ {[%clk 0:00:05.5]} 42. Rxd6 {[%clk 0:00:04.3]} 42... Rc1 {[%clk
0:00:05.9]} 43. Bxe4 {[%clk 0:00:04.8]} 43... Rxc4 {[%clk 0:00:06.3]} 44. Bd5
{[%clk 0:00:04.2]} 44... Rb4 {[%clk 0:00:06.3]} 45. Rxd7 {[%clk 0:00:03.1]}
45... Ng5 {[%clk 0:00:02.9]} 46. f4 {[%clk 0:00:02.5]} 46... Ne6 {[%clk
0:00:01.7]} 47. Bxe6 {[%clk 0:00:02.7]} 47... Kf6 {[%clk 0:00:02.5]} 48. Bxf7
{[%clk 0:00:03.2]} 48... Rxb5 {[%clk 0:00:02.7]} 49. e4 {[%clk 0:00:03.6]} 49...
g5 {[%clk 0:00:02.6]} 50. fxg5+ {[%clk 0:00:03.2]} 50... Kxg5 {[%clk 0:00:02.8]}
51. Bd5 {[%clk 0:00:03.9]} 51... Rc5 {[%clk 0:00:03.3]} 52. Rxh7 {[%clk
0:00:03.8]} 52... Kf4 {[%clk 0:00:03.8]} 53. Rf7+ {[%clk 0:00:04.1]} 53... Ke5
{[%clk 0:00:04.3]} 54. Rf5+ {[%clk 0:00:03.7]} 54... Kd4 {[%clk 0:00:04.9]} 55.
h4 {[%clk 0:00:04]} 55... Rc7 {[%clk 0:00:04.9]} 56. h5 {[%clk 0:00:04.4]} 56...
Rg7 {[%clk 0:00:04.9]} 57. Kh3 {[%clk 0:00:04.4]} 57... Ra7 {[%clk 0:00:04.5]}
58. g4 {[%clk 0:00:05]} 58... Ra1 {[%clk 0:00:05.2]} 59. Kh4 {[%clk 0:00:05.6]}
59... Ke3 {[%clk 0:00:05]} 60. Kg5 {[%clk 0:00:06.1]} 60... Rh1 {[%clk
0:00:05.7]} 61. h6 {[%clk 0:00:06.8]} 61... Rg1 {[%clk 0:00:06.5]} 62. Kh5
{[%clk 0:00:07.2]} 62... Rh1+ {[%clk 0:00:06.9]} 63. Kg6 {[%clk 0:00:07.6]}
63... Rh4 {[%clk 0:00:07.8]} 64. g5 {[%clk 0:00:07.9]} 64... Kd4 {[%clk
0:00:08.4]} 65. h7 {[%clk 0:00:08.3]} 65... Kc5 {[%clk 0:00:09.1]} 66. Kg7
{[%clk 0:00:08.8]} 66... Kd6 {[%clk 0:00:10]} 67. h8=Q {[%clk 0:00:09.3]} 67...
Rg4 {[%clk 0:00:07.3]} 68. Qd8+ {[%clk 0:00:07.9]} 68... Kc5 {[%clk 0:00:07.5]}
69. Qc7+ {[%clk 0:00:08.4]} 69... Kd4 {[%clk 0:00:08.4]} 70. Qc4+ {[%clk
0:00:07.1]} 70... Ke3 {[%clk 0:00:09.3]} 71. Qc3+ {[%clk 0:00:07.3]} 71... Ke2
{[%clk 0:00:09.5]} 72. Bc4+ {[%clk 0:00:07.8]} 72... Kd1 {[%clk 0:00:09.5]} 73.
Rf1# {[%clk 0:00:08.2]} 1-0

[Event "Early-Titled-Tuesday-Blitz-May-14-2024"]
[Site "Chess.com"]
[Date "2024.05.14"]
[Round "7"]
[White "Carolinamazariegos88"]
[Black "cukus"]
[Result "0-1"]
[WhiteElo "1697"]
[BlackElo "2376"]
[TimeControl "180+1"]
[EndTime "9:21:05 PDT"]
[Termination "cukus won by resignation"]

1. c4 {[%clk 0:03:00.1]} 1... Nf6 {[%clk 0:02:59.5]} 2. Nc3 {[%clk 0:03:00.1]}
2... e5 {[%clk 0:02:59.4]} 3. g3 {[%clk 0:02:59.9]} 3... d5 {[%clk 0:02:57.7]}
4. cxd5 {[%clk 0:02:59.8]} 4... Nxd5 {[%clk 0:02:58.6]} 5. Bg2 {[%clk
0:03:00.2]} 5... Nb6 {[%clk 0:02:58.6]} 6. d3 {[%clk 0:02:58.6]} 6... Be7 {[%clk
0:02:56.7]} 7. Nf3 {[%clk 0:02:58.7]} 7... Nc6 {[%clk 0:02:55.2]} 8. O-O {[%clk
0:02:58.5]} 8... O-O {[%clk 0:02:55]} 9. a3 {[%clk 0:02:58.1]} 9... Be6 {[%clk
0:02:53.6]} 10. Nd2 {[%clk 0:02:47.7]} 10... f5 {[%clk 0:02:41.9]} 11. f4 {[%clk
0:02:44.1]} 11... Bf6 {[%clk 0:02:39.1]} 12. Nf3 {[%clk 0:02:42.3]} 12... Nd4
{[%clk 0:02:18.8]} 13. fxe5 {[%clk 0:02:31]} 13... Nxf3+ {[%clk 0:02:13.7]} 14.
Bxf3 {[%clk 0:02:31.3]} 14... Bxe5 {[%clk 0:02:14.2]} 15. Bxb7 {[%clk
0:02:29.4]} 15... Rb8 {[%clk 0:02:14.6]} 16. Bg2 {[%clk 0:02:28.1]} 16... Nd5
{[%clk 0:02:06.2]} 17. Nxd5 {[%clk 0:02:21.6]} 17... Bxd5 {[%clk 0:02:07.1]} 18.
e4 {[%clk 0:02:14.2]} 18... fxe4 {[%clk 0:01:46.1]} 19. dxe4 {[%clk 0:02:13.3]}
19... Bc4 {[%clk 0:01:32.7]} 20. Rxf8+ {[%clk 0:02:12.1]} 20... Qxf8 {[%clk
0:01:32.3]} 21. Be3 {[%clk 0:02:04]} 21... Rxb2 {[%clk 0:01:26.4]} 22. Bxa7
{[%clk 0:01:55.5]} 22... c5 {[%clk 0:01:09.8]} 23. Qf3 {[%clk 0:01:24]} 23...
Bd4+ {[%clk 0:01:07.3]} 24. Kh1 {[%clk 0:01:22.2]} 24... Qe7 {[%clk 0:00:40.9]}
25. Rc1 {[%clk 0:01:14.1]} 25... Bb5 {[%clk 0:00:35.6]} 26. Bb8 {[%clk
0:01:01.5]} 26... Rf2 {[%clk 0:00:26.9]} 27. Qg4 {[%clk 0:00:58.9]} 27... h6
{[%clk 0:00:20.6]} 28. Bf4 {[%clk 0:00:55.9]} 28... Bc6 {[%clk 0:00:18.8]} 29.
Qc8+ {[%clk 0:00:51.8]} 29... Be8 {[%clk 0:00:19.3]} 30. e5 {[%clk 0:00:44.3]}
30... Kh7 {[%clk 0:00:17.1]} 31. Be4+ {[%clk 0:00:39.3]} 31... g6 {[%clk
0:00:17.4]} 32. Qb7 {[%clk 0:00:32.5]} 32... Qxb7 {[%clk 0:00:12.9]} 33. Bxb7
{[%clk 0:00:32.8]} 33... g5 {[%clk 0:00:12.7]} 34. Bd2 {[%clk 0:00:28.9]} 34...
Rxd2 {[%clk 0:00:12.8]} 35. e6 {[%clk 0:00:26.5]} 35... Re2 {[%clk 0:00:11.9]}
36. Bd5 {[%clk 0:00:26.5]} 36... Re5 {[%clk 0:00:11.3]} 37. Bc4 {[%clk
0:00:26.3]} 37... Kg7 {[%clk 0:00:10.5]} 38. Kg2 {[%clk 0:00:26]} 38... Bg6
{[%clk 0:00:09.3]} 39. a4 {[%clk 0:00:23.6]} 39... Be4+ {[%clk 0:00:09.4]} 40.
Kh3 {[%clk 0:00:23.8]} 40... Bd5 {[%clk 0:00:06.8]} 41. Bxd5 {[%clk 0:00:20.9]}
41... Rxd5 {[%clk 0:00:07.7]} 42. a5 {[%clk 0:00:21.8]} 42... Re5 {[%clk
0:00:07.4]} 43. a6 {[%clk 0:00:20.9]} 43... Rxe6 {[%clk 0:00:07]} 44. Rb1 {[%clk
0:00:19]} 44... Rxa6 {[%clk 0:00:06.6]} 45. Kg4 {[%clk 0:00:19.9]} 45... Kg6
{[%clk 0:00:05.3]} 46. Kf3 {[%clk 0:00:19.8]} 46... Rf6+ {[%clk 0:00:05.7]} 47.
Ke4 {[%clk 0:00:20.1]} 47... Re6+ {[%clk 0:00:06.4]} 48. Kd5 {[%clk 0:00:20.1]}
48... Re5+ {[%clk 0:00:07]} 49. Kc4 {[%clk 0:00:19.9]} 49... Rf5 {[%clk
0:00:07.4]} 50. g4 {[%clk 0:00:19.5]} 50... Rf6 {[%clk 0:00:07.9]} 51. Kd5
{[%clk 0:00:19.1]} 51... h5 {[%clk 0:00:07.7]} 52. h3 {[%clk 0:00:19.1]} 52...
hxg4 {[%clk 0:00:07.8]} 53. hxg4 {[%clk 0:00:19.4]} 53... Rf4 {[%clk 0:00:07.4]}
54. Rb6+ {[%clk 0:00:19.3]} 54... Kg7 {[%clk 0:00:07.9]} 55. Rb7+ {[%clk
0:00:17.8]} 55... Kf8 {[%clk 0:00:07.7]} 56. Rb8+ {[%clk 0:00:16]} 56... Kf7
{[%clk 0:00:07.4]} 57. Rb7+ {[%clk 0:00:16.2]} 57... Kg6 {[%clk 0:00:07.2]} 58.
Rb6+ {[%clk 0:00:16.5]} 58... Rf6 {[%clk 0:00:07.9]} 59. Rb1 {[%clk 0:00:16.2]}
59... Rf7 {[%clk 0:00:07.5]} 60. Rb6+ {[%clk 0:00:16.1]} 60... Kg7 {[%clk
0:00:08.1]} 61. Rb1 {[%clk 0:00:15]} 61... Rd7+ {[%clk 0:00:07.7]} 62. Ke6
{[%clk 0:00:15]} 62... Ra7 {[%clk 0:00:07.8]} 63. Kf5 {[%clk 0:00:14.6]} 63...
Be3 {[%clk 0:00:07.6]} 64. Rb6 {[%clk 0:00:13.7]} 64... Bf4 {[%clk 0:00:07.1]}
65. Rc6 {[%clk 0:00:13.4]} 65... Ra5 {[%clk 0:00:06.2]} 66. Rc7+ {[%clk
0:00:13.2]} 66... Bxc7 {[%clk 0:00:06.1]} 67. Kxg5 {[%clk 0:00:11.4]} 67... c4+
{[%clk 0:00:06.5]} 0-1

[Event "Early-Titled-Tuesday-Blitz-May-14-2024"]
[Site "Chess.com"]
[Date "2024.05.14"]
[Round "7"]
[White "blitzking1729"]
[Black "AlexanderKing"]
[Result "1-0"]
[WhiteElo "2760"]
[BlackElo "2560"]
[TimeControl "180+1"]
[EndTime "9:21:06 PDT"]
[Termination "blitzking1729 won on time"]

1. g3 {[%clk 0:02:58.1]} 1... Nf6 {[%clk 0:02:59.1]} 2. Bg2 {[%clk 0:02:51.9]}
2... g6 {[%clk 0:02:59.3]} 3. c4 {[%clk 0:02:47]} 3... Bg7 {[%clk 0:02:59.3]} 4.
Nc3 {[%clk 0:02:45.8]} 4... O-O {[%clk 0:02:59.1]} 5. Nf3 {[%clk 0:02:43.6]}
5... c5 {[%clk 0:02:59.1]} 6. O-O {[%clk 0:02:41.9]} 6... Nc6 {[%clk 0:02:59.2]}
7. b3 {[%clk 0:02:38.6]} 7... d5 {[%clk 0:02:57.8]} 8. cxd5 {[%clk 0:02:38.3]}
8... Nxd5 {[%clk 0:02:58.7]} 9. Bb2 {[%clk 0:02:37.8]} 9... Nxc3 {[%clk
0:02:58.4]} 10. Bxc3 {[%clk 0:02:38.7]} 10... Bxc3 {[%clk 0:02:57.5]} 11. dxc3
{[%clk 0:02:39.6]} 11... Qxd1 {[%clk 0:02:57.3]} 12. Rfxd1 {[%clk 0:02:40.5]}
12... Bg4 {[%clk 0:02:50.1]} 13. h3 {[%clk 0:02:36.1]} 13... Bxf3 {[%clk
0:02:31.6]} 14. Bxf3 {[%clk 0:02:36]} 14... Rfd8 {[%clk 0:02:19.8]} 15. Bxc6
{[%clk 0:02:28.6]} 15... bxc6 {[%clk 0:02:20.7]} 16. e4 {[%clk 0:02:27.8]} 16...
a5 {[%clk 0:02:20.7]} 17. Kf1 {[%clk 0:02:25.4]} 17... Rxd1+ {[%clk 0:01:58.1]}
18. Rxd1 {[%clk 0:02:23.8]} 18... a4 {[%clk 0:01:59]} 19. b4 {[%clk 0:02:05.7]}
19... a3 {[%clk 0:01:37.5]} 20. Ke2 {[%clk 0:01:25.9]} 20... Kg7 {[%clk
0:01:18.2]} 21. bxc5 {[%clk 0:01:21.9]} 21... Ra5 {[%clk 0:01:14.1]} 22. Rb1
{[%clk 0:01:21.4]} 22... Rxc5 {[%clk 0:01:13.8]} 23. Rb3 {[%clk 0:01:21.7]}
23... f5 {[%clk 0:01:06]} 24. exf5 {[%clk 0:01:20.7]} 24... gxf5 {[%clk
0:00:56]} 25. Rxa3 {[%clk 0:01:20.1]} 25... Rb5 {[%clk 0:00:55.6]} 26. Rb3
{[%clk 0:01:13.2]} 26... Ra5 {[%clk 0:00:55.5]} 27. a3 {[%clk 0:01:03.3]} 27...
c5 {[%clk 0:00:55.8]} 28. Kd3 {[%clk 0:00:55.6]} 28... Ra4 {[%clk 0:00:56.1]}
29. Rb5 {[%clk 0:00:54.5]} 29... Rxa3 {[%clk 0:00:49.2]} 30. Rxc5 {[%clk
0:00:54.3]} 30... Kf6 {[%clk 0:00:49.3]} 31. g4 {[%clk 0:00:50]} 31... fxg4
{[%clk 0:00:49.1]} 32. hxg4 {[%clk 0:00:50.9]} 32... Ra2 {[%clk 0:00:44.2]} 33.
f3 {[%clk 0:00:50.1]} 33... Rf2 {[%clk 0:00:25.7]} 34. Rf5+ {[%clk 0:00:41.2]}
34... Ke6 {[%clk 0:00:19.7]} 35. c4 {[%clk 0:00:38.1]} 35... h5 {[%clk
0:00:16.2]} 36. Rxh5 {[%clk 0:00:20.4]} 36... Rxf3+ {[%clk 0:00:16.1]} 37. Ke4
{[%clk 0:00:21]} 37... Rg3 {[%clk 0:00:11.1]} 38. Rh6+ {[%clk 0:00:19]} 38...
Kd7 {[%clk 0:00:05.4]} 39. Rg6 {[%clk 0:00:19.1]} 39... Rc3 {[%clk 0:00:01.8]}
40. Kd4 {[%clk 0:00:18.9]} 40... Rg3 {[%clk 0:00:02.4]} 41. g5 {[%clk
0:00:19.1]} 41... e6 {[%clk 0:00:01.6]} 42. Rg7+ {[%clk 0:00:18.1]} 42... Kc6
{[%clk 0:00:01.2]} 43. Ke5 {[%clk 0:00:17.6]} 43... Re3+ {[%clk 0:00:00.6]} 44.
Kf6 {[%clk 0:00:18.1]} 44... Kc5 {[%clk 0:00:01.3]} 45. Re7 {[%clk 0:00:18.1]}
45... Kxc4 {[%clk 0:00:01.1]} 46. Rxe6 {[%clk 0:00:18.2]} 46... Rf3+ {[%clk
0:00:02]} 47. Kg7 {[%clk 0:00:18]} 47... Kd5 {[%clk 0:00:02.9]} 48. Re1 {[%clk
0:00:17.4]} 48... Kd6 {[%clk 0:00:01.3]} 49. g6 {[%clk 0:00:17.8]} 49... Kd7
{[%clk 0:00:01.6]} 50. Kg8 {[%clk 0:00:17.9]} 50... Rh3 {[%clk 0:00:01.5]} 51.
g7 {[%clk 0:00:17.7]} 51... Rh2 {[%clk 0:00:01.6]} 52. Re5 {[%clk 0:00:08.5]}
52... Kd6 {[%clk 0:00:01.4]} 53. Re8 {[%clk 0:00:08.1]} 53... Kd7 {[%clk
0:00:01.2]} 54. Rf8 {[%clk 0:00:08.2]} 54... Ke7 {[%clk 0:00:01.2]} 55. Rf1
{[%clk 0:00:08.2]} 55... Rh3 {[%clk 0:00:01.5]} 56. Re1+ {[%clk 0:00:08]} 56...
Kd7 {[%clk 0:00:02.1]} 57. Re4 {[%clk 0:00:07.9]} 57... Rh1 {[%clk 0:00:01.7]}
58. Kf7 {[%clk 0:00:08.2]} 58... Rf1+ {[%clk 0:00:02]} 59. Kg6 {[%clk
0:00:08.7]} 59... Rg1+ {[%clk 0:00:02.7]} 60. Kf6 {[%clk 0:00:09.1]} 60... Kd8
{[%clk 0:00:01.4]} 61. Re5 {[%clk 0:00:07.9]} 61... Kd7 {[%clk 0:00:01.3]} 62.
Rg5 {[%clk 0:00:08]} 62... Rf1+ {[%clk 0:00:01]} 63. Kg6 {[%clk 0:00:08.5]} 1-0